fUSD/lending_fUSD_20240608
["ID","MTS","AMOUNT","RATE_DAILY","PERIOD"]
[328834807,1717858147417,-3617.40503477,0.00012773,2]
[328834808,1717858151116,-155.0,0.00012771,2]
[328834809,1717858151138,-1172.46830202,0.00012773,2]
[328834810,1717858155111,-791.7650853,0.00012773,2]
[328834811,1717858155137,-1582.4939513,0.00012773,2]
[328834812,1717858165088,-345.62576659,0.00012772,2]
[328834813,1717858165111,-1901.16364484,0.00012772,2]
[328834814,1717858165133,-1637.28244132,0.00012773,2]
[328834817,1717858232620,-6583.630162,0.0001271,2]
[328834819,1717858232631,-205.60285074,0.00012775,2]
[328834821,1717858232641,-155.0,0.00012775,2]
[328834822,1717858232652,-302.17365557,0.00012775,2]
[328834824,1717858232662,-263.76013277,0.00012775,2]
[328834826,1717858232672,-150.0,0.00012775,2]
[328834828,1717858232682,-235.77130805,0.00012777,2]
[328834830,1717858232693,-213.98814988,0.00012777,2]
[328834831,1717858232703,-10973.78387867,0.00012999,2]
[328834832,1717858232716,-3339.34141866,0.00013,2]
[328834833,1717858232726,-221.08,0.00013093,2]
[328834834,1717858232735,-250.0,0.00013152,2]
[328834835,1717858232750,-155.0,0.00013919,2]
[328834836,1717858232760,-499.99,0.0001392,2]
[328834837,1717858232772,-1489.78467668,0.00013978,2]
[328834838,1717858232783,-150.99,0.00013982,2]
[328834839,1717858232793,-687.14,0.00013987,2]
[328834840,1717858232802,-755.84,0.0001399,3]
[328834841,1717858232812,-177.37658849,0.0001399,2]
[328834842,1717858232823,-23900.0,0.00013995,2]
[328834843,1717858232833,-254.17270818,0.00013997,2]
[328834844,1717858232844,-317.11697702,0.00013997,2]
[328834845,1717858232854,-926.25807779,0.00013997,2]
[328834846,1717858232863,-572.89771205,0.00013998,2]
[328834847,1717858232873,-270.05789518,0.00013998,2]
[328834848,1717858232883,-235.62062315,0.00013998,2]
[328834849,1717858232893,-342.49142395,0.00013998,2]
[328834850,1717858232903,-361.36781128,0.00013998,2]
[328834851,1717858232913,-157.38766626,0.00013998,2]
[328834852,1717858232923,-4185.21200345,0.00013998,2]
[328834853,1717858232933,-164.44909135,0.00013999,2]
[328834854,1717858232943,-461.76863275,0.00013999,2]
[328834855,1717858232953,-157.47616147,0.00013999,2]
[328834856,1717858232968,-27816.57173461,0.00013999,2]
[328834857,1717858232978,-130402.16596961,0.00014,2]
[328834858,1717858232999,-530.44,0.00014,2]
[328834859,1717858233011,-4000.0,0.00014,2]
[328834860,1717858233023,-653.04,0.00014,2]
[328834861,1717858233035,-2587.02208,0.00014,2]
[328834862,1717858233355,-443.7326138,0.00014,2]
[328834865,1717858233368,-474473.11078708,0.00014,2]
[328834867,1717858233377,-158.73126334,0.0001402,2]
[328834869,1717858233387,-687.14,0.00014025,2]
[328834871,1717858233397,-157.0,0.00014052,2]
[328834873,1717858233407,-687.14,0.00014064,2]
[328834875,1717858233417,-687.14,0.00014102,2]
[328834877,1717858233427,-250.0,0.0001412,2]
[328834879,1717858233436,-687.14,0.0001414,2]
[328834881,1717858233446,-687.14,0.00014179,2]
[328834883,1717858233456,-687.14,0.00014217,2]
[328834885,1717858233468,-687.14,0.00014255,2]
[328834887,1717858233479,-687.14,0.00014294,2]
[328834889,1717858233488,-578.63,0.00014328,2]
[328834891,1717858233498,-687.14,0.00014332,2]
[328834894,1717858233509,-687.14,0.0001437,2]
[328834896,1717858233518,-687.14,0.00014409,2]
[328834898,1717858233528,-687.14,0.00014447,2]
[328834900,1717858233539,-687.14,0.00014485,2]
[328834902,1717858233548,-1222.0,0.00014489,2]
[328834904,1717858233558,-687.14,0.00014524,2]
[328834906,1717858233568,-687.14,0.00014562,2]
[328834908,1717858233578,-687.14,0.00014601,2]
[328834910,1717858233589,-687.14,0.00014639,2]
[328834912,1717858233599,-687.14,0.00014677,2]
[328834914,1717858233608,-687.14,0.00014716,2]
[328834916,1717858233618,-200.0,0.000149,5]
[328834918,1717858233629,-151.63,0.0001499,2]
[328834920,1717858233638,-279905.5410564,0.00015,2]
[328834922,1717858233648,-620.97725265,0.00015,2]
[328834924,1717858233659,-174.47135579,0.0001502,2]
[328834926,1717858233669,-221.08,0.00015833,2]
[328834928,1717858233679,-1355.83,0.00016438,2]
[328834930,1717858233690,-578.63,0.00016592,2]
[328834932,1717858233699,-4443.30606049,0.00017096,2]
[328834934,1717858233711,-2250.0,0.000171,2]
[328834936,1717858233720,-176.32029516,0.00017153,2]
[328834938,1717858233730,-5665.12353146,0.00017225,2]
[328834940,1717858233742,-15835.36776193,0.00017258,2]
[328834942,1717858233753,-649.53295488,0.00018,2]
[328834944,1717858233763,-221.08,0.00018572,2]
[328834946,1717858233772,-578.63,0.00018856,2]
[328834948,1717858233783,-1000.0,0.00019076,2]
[328834950,1717858233794,-214.78787512,0.00019178,2]
[328834952,1717858233804,-3651.315,0.00019255,2]
[328834953,1717858233813,-11068.2813602,0.0002,2]
[328834955,1717858233824,-155.0,0.0002,2]
[328834957,1717858233834,-1779.87597909,0.0002,2]
[328834960,1717858233844,-1980.83866895,0.0002,2]
[328834961,1717858233854,-22488.25683968,0.0002,2]
[328834963,1717858233863,-226.64653432,0.000201,2]
[328834965,1717858233873,-500.0,0.000209,7]
[328834967,1717858233882,-3728.639,0.00021017,2]
[328834969,1717858233893,-71839.7299,0.00021081,2]
[328834971,1717858233904,-578.63,0.0002112,2]
[328834973,1717858233913,-330.7,0.00021454,2]
[328834975,1717858233923,-1000.0,0.0002146,2]
[328834977,1717858233933,-1268.0,0.00021468,2]
[328834980,1717858233945,-441.376,0.00021468,2]
[328834982,1717858233955,-441.0,0.00021468,2]
[328834984,1717858233967,-1977.0,0.00021468,2]
[328834985,1717858233977,-4179.0,0.00021468,2]
[328834987,1717858233987,-27375.834,0.00021468,2]
[328834989,1717858233997,-612.0,0.00021468,2]
[328834992,1717858234007,-10000.0,0.000215,2]
[328834993,1717858234017,-1343.0,0.000216,5]
[328834996,1717858234027,-250.0,0.00021918,2]
[328834998,1717858234037,-216.91144525,0.00023,2]
[328835000,1717858234047,-578.63,0.00023384,2]
[328835002,1717858234057,-1000.0,0.00023845,2]
[328835004,1717858234067,-258.0384721,0.00023989,2]
[328835006,1717858234077,-1157.52,0.00024184,2]
[328835008,1717858234087,-152.62,0.00024384,2]
[328835010,1717858234096,-173.63,0.00024384,2]
[328835012,1717858234105,-241.408695,0.00024384,2]
[328835014,1717858234115,-171.05,0.00024428,2]
[328835016,1717858234125,-1266.0,0.00024468,2]
[328835018,1717858234135,-1860.417,0.00024468,2]
[328835020,1717858234144,-150.0,0.00024594,2]
[328835022,1717858234154,-213.9272,0.00024698,2]
[328835046,1717858234381,-1546.34161851,0.00024798,2]
[328835048,1717858234391,-1546.34161842,0.00024798,2]
[328835051,1717858234401,-1546.34161842,0.00024798,2]
[328835053,1717858234412,-1546.34161842,0.00024798,2]
[328835055,1717858234422,-1546.34161842,0.00024798,2]
[328835057,1717858234432,-1546.34161842,0.00024798,2]
[328835059,1717858234441,-1546.34161842,0.00024798,2]
[328835061,1717858234451,-1203.69209202,0.00025,2]
[328835063,1717858234463,-1250.0,0.00025,2]
[328835065,1717858234472,-706.32929204,0.00025,2]
[328835067,1717858234481,-241.408695,0.00025205,2]
[328835069,1717858234491,-150.0,0.00025274,3]
[328835071,1717858234500,-578.63,0.00025648,2]
[328835073,1717858234510,-4398.05259795,0.00026,5]
[328835075,1717858234519,-241.408695,0.00026027,2]
[328835077,1717858234529,-1546.34161842,0.00026193,2]
[328835079,1717858234539,-1000.0,0.00026229,2]
[328835081,1717858234549,-151.00335646,0.00026676,2]
[328835083,1717858234559,-222.12265398,0.00026687,2]
[328835085,1717858234569,-151.00335646,0.00026833,2]
[328835087,1717858234579,-151.00335646,0.00026872,2]
[328835089,1717858234589,-151.00335646,0.00026883,2]
[328835091,1717858234599,-1300.0,0.00027,2]
[328835093,1717858234608,-200.0,0.00027,2]
[328835095,1717858234618,-151.00335646,0.0002728,2]
[328835097,1717858234628,-189.71880998,0.00027397,2]
[328835099,1717858234638,-2485.09344287,0.000274,2]
[328835101,1717858234647,-151.00335646,0.0002767,2]
[328835103,1717858234658,-152.33722728,0.0002772,2]
[328835105,1717858234668,-189.769808,0.00027783,2]
[328835107,1717858234677,-578.63,0.00027912,2]
[328835109,1717858234687,-1546.34161842,0.00027947,2]
[328835111,1717858234697,-500.89,0.00028,2]
[328835113,1717858234707,-6009.54,0.00028,7]
[328835115,1717858234718,-10000.0,0.00028,4]
[328835117,1717858234728,-151.00335646,0.00028153,2]
[328835119,1717858234737,-151.00335646,0.00028245,2]
[328835121,1717858234750,-151.00335646,0.0002831,2]
[328835123,1717858234760,-565.0,0.00028313,2]
[328835125,1717858234770,-422.3,0.00028356,2]
[328835127,1717858234781,-300.0,0.00028356,2]
[328835129,1717858234791,-164.06,0.00028356,2]
[328835131,1717858234801,-353.13,0.00028356,2]
[328835133,1717858234811,-300.0,0.00028356,2]
[328835135,1717858234821,-158.37,0.00028356,2]
[328835137,1717858234832,-841.09,0.00028356,2]
[328835139,1717858234842,-150.0,0.00028356,2]
[328835141,1717858234851,-351.87,0.00028356,2]
[328835143,1717858234861,-327.3,0.00028356,2]
[328835145,1717858234870,-150.0,0.00028356,2]
[328835147,1717858234880,-150.0,0.00028356,2]
[328835149,1717858234890,-152.33722728,0.0002836,2]
[328835151,1717858234900,-151.00335646,0.00028386,2]
[328835153,1717858234909,-152.33722728,0.00028431,2]
[328835155,1717858234919,-1000.0,0.00028614,2]
[328835157,1717858234929,-19700.729651,0.000287,2]
[328835159,1717858234938,-636.96050961,0.0002871,4]
[328835161,1717858234948,-909.37286,0.0002871,2]
[328835163,1717858234958,-150.0,0.00028735,2]
[328835165,1717858234970,-150.0,0.00028746,2]
[328835167,1717858234980,-151.00335646,0.00028746,2]
[328835169,1717858234990,-160.07290368,0.00028761,2]
[328835170,1717858235000,-500.0,0.00028766,2]
[328835171,1717858235010,-500.0,0.00028767,2]
[328835172,1717858235019,-500.0,0.00028768,2]
[328835173,1717858235029,-200.0,0.00028768,2]
[328835174,1717858235039,-150.0,0.0002877,2]
[328835175,1717858235051,-150.0,0.00028772,2]
[328835176,1717858235063,-150.0,0.00028774,2]
[328835177,1717858235073,-150.0,0.0002879,2]
[328835178,1717858235083,-151.00335646,0.00028798,2]
[328835179,1717858235092,-700.0,0.000288,10]
[328835180,1717858235102,-150.0,0.00028804,2]
[328835181,1717858235112,-150.0,0.0002881,2]
[328835182,1717858235122,-150.0,0.00028813,2]
[328835183,1717858235133,-150.0,0.00028816,2]
[328835184,1717858235143,-150.0,0.00028838,2]
[328835185,1717858235153,-314.15,0.00028851,2]
[328835186,1717858235162,-150.0,0.00028851,2]
[328835187,1717858235172,-150.0,0.00028851,2]
[328835188,1717858235182,-164.14,0.00028851,2]
[328835189,1717858235192,-353.29,0.00028851,2]
[328835190,1717858235201,-150.0,0.00028851,2]
[328835191,1717858235211,-150.0,0.00028851,2]
[328835192,1717858235221,-150.0,0.00028851,2]
[328835193,1717858235230,-353.29,0.00028851,2]
[328835194,1717858235240,-164.14,0.00028851,2]
[328835195,1717858235249,-150.0,0.00028854,2]
[328835196,1717858235259,-150.0,0.00028875,2]
[328835197,1717858235268,-3473.39949676,0.0002888,7]
[328835198,1717858235278,-150.0,0.00028883,2]
[328835199,1717858235288,-1000.0,0.000289,10]
[328835200,1717858235297,-150.0,0.00028904,2]
[328835201,1717858235307,-150.0,0.00028905,2]
[328835202,1717858235316,-150.0,0.00028929,2]
[328835203,1717858235326,-150.0,0.00028946,2]
[328835204,1717858235336,-150.0,0.00028949,2]
[328835205,1717858235345,-150.0,0.00028952,2]
[328835206,1717858235355,-150.0,0.0002896,2]
[328835207,1717858235364,-150.0,0.00028961,2]
[328835208,1717858235374,-11546.0521268,0.0002899,2]
[328835209,1717858235383,-3927.0378508,0.00028991,2]
[328835210,1717858235393,-61155.4107098,0.00028991,2]
[328835211,1717858235402,-161.25760978,0.00028995,2]
[328835212,1717858235412,-208.87102398,0.00028999,2]
[328835213,1717858235422,-5893.09556016,0.00028999,2]
[328835214,1717858235432,-1350.0,0.00029,2]
[328835215,1717858235442,-345.0,0.00029,2]
[328835216,1717858235451,-5000.0,0.00029,7]
[328835217,1717858235461,-190.0,0.00029,13]
[328835218,1717858235472,-714.03763505,0.00029,2]
[328835219,1717858235482,-151.0,0.00029,7]
[328835220,1717858235492,-1900.0,0.00029,10]
[328835221,1717858235502,-300.0,0.00029,7]
[328835222,1717858235511,-150.0,0.00029,6]
[328835223,1717858235521,-500.0,0.00029,2]
[328835224,1717858235531,-3650.9191255,0.00029011,2]
[328835225,1717858235541,-151.0,0.00029011,7]
[328835226,1717858235551,-417.25,0.00029041,2]
[328835227,1717858235562,-850.48,0.00029041,2]
[328835228,1717858235572,-417.25,0.00029041,2]
[328835229,1717858235583,-850.48,0.00029041,2]
[328835230,1717858235593,-417.25,0.00029041,2]
[328835231,1717858235605,-850.48,0.00029041,2]
[328835232,1717858235616,-850.48,0.00029041,2]
[328835233,1717858235626,-417.25,0.00029041,2]
[328835234,1717858235636,-154.44,0.00029041,2]
[328835235,1717858235646,-850.48,0.00029041,2]
[328835236,1717858235656,-433.63,0.00029041,2]
[328835237,1717858235666,-192.13560777,0.00029073,2]
[328835238,1717858235676,-1841.41,0.00029122,2]
[328835239,1717858235686,-12052.20257059,0.0002913,10]
[328835240,1717858235697,-155.76345,0.00029172,2]
[328835241,1717858235707,-3256.912292,0.00029172,2]
[328835242,1717858235718,-6422.752601,0.00029172,2]
[328835243,1717858235727,-16328.473978,0.00029172,2]
[328835244,1717858235738,-6422.752602,0.00029172,2]
[328835245,1717858235753,-3348.073798,0.00029172,2]
[328835246,1717858235763,-208.064902,0.00029172,2]
[328835247,1717858235773,-195.903585,0.00029172,2]
[328835248,1717858235783,-185.020053,0.00029172,2]
[328835249,1717858235794,-185.006397,0.00029172,2]
[328835250,1717858235804,-151.0,0.00029172,7]
[328835251,1717858235814,-151.0,0.00029172,7]
[328835252,1717858235827,-153.22074,0.00029172,7]
[328835253,1717858235837,-153.22074,0.00029172,7]
[328835254,1717858235848,-151.0,0.00029172,7]
[328835255,1717858235857,-151.0,0.00029172,7]
[328835256,1717858235867,-151.0,0.00029172,7]
[328835257,1717858235877,-151.0,0.00029172,7]
[328835258,1717858235886,-151.0,0.00029172,7]
[328835259,1717858235896,-151.0,0.00029172,7]
[328835260,1717858235905,-151.0,0.00029172,7]
[328835261,1717858235915,-151.0,0.00029172,7]
[328835262,1717858235925,-151.0,0.00029172,7]
[328835263,1717858235934,-151.0,0.00029172,7]
[328835264,1717858235943,-151.0,0.00029172,7]
[328835265,1717858235952,-151.0,0.00029172,7]
[328835266,1717858235963,-151.0,0.00029172,7]
[328835267,1717858235972,-151.0,0.00029172,7]
[328835268,1717858235982,-151.0,0.00029172,7]
[328835269,1717858235991,-25000.0,0.00029245,2]
[328835270,1717858236002,-1552.58,0.0002926,2]
[328835271,1717858236011,-152.0,0.000293,3]
[328835272,1717858236022,-1200.0,0.000293,10]
[328835273,1717858236031,-500.0,0.00029314,2]
[328835274,1717858236041,-5000.0,0.00029361,2]
[328835275,1717858236051,-151.00335646,0.00029386,2]
[328835276,1717858236061,-7947.48013741,0.00029398,2]
[328835277,1717858236072,-953.09528276,0.00029399,2]
[328835278,1717858236082,-200.0,0.000294,10]
[328835279,1717858236092,-204.48397637,0.000294,2]
[328835280,1717858236101,-7947.4801374,0.00029444,2]
[328835281,1717858236111,-2539.21,0.00029453,2]
[328835282,1717858236121,-4610.3336856,0.00029471,2]
[328835283,1717858236131,-46733.27,0.0002948,6]
[328835284,1717858236141,-151.63,0.00029488,2]
[328835285,1717858236151,-151.63,0.00029489,2]
[328835286,1717858236161,-9694.6519108,0.00029489,2]
[328835287,1717858236171,-7947.4801374,0.00029489,2]
[328835288,1717858236181,-177.37658849,0.0002949,2]
[328835289,1717858236191,-151.63,0.0002949,2]
[328835290,1717858236200,-459.81006379,0.00029498,2]
[328835291,1717858236210,-2198.99671863,0.00029498,2]
[328835292,1717858236220,-2335.29723679,0.00029498,2]
[328835293,1717858236229,-324.02522433,0.00029498,2]
[328835294,1717858236239,-658.62502392,0.00029498,2]
[328835295,1717858236248,-4612.03981804,0.00029498,3]
[328835296,1717858236257,-883.03899572,0.00029498,2]
[328835297,1717858236267,-428.29639569,0.00029498,2]
[328835298,1717858236277,-155.97259723,0.00029498,2]
[328835299,1717858236287,-184.73300188,0.00029498,2]
[328835300,1717858236297,-448.20174494,0.00029498,2]
[328835301,1717858236310,-204.30812187,0.00029498,2]
[328835302,1717858236323,-345.61502096,0.00029498,2]
[328835303,1717858236336,-155.0,0.00029498,2]
[328835304,1717858236350,-827.48757697,0.00029498,2]
[328835305,1717858236364,-569.27558099,0.00029498,2]
[328835306,1717858236376,-232.27478231,0.00029498,2]
[328835307,1717858236386,-229.00475518,0.00029498,2]
[328835308,1717858236397,-276.70792554,0.00029498,2]
[328835309,1717858236410,-626.94963818,0.00029498,2]
[328835310,1717858236421,-261.19672657,0.00029498,2]
[328835311,1717858236433,-160.11276068,0.00029498,2]
[328835312,1717858236445,-180.62965088,0.00029498,2]
[328835313,1717858236457,-54379.03261682,0.00029498,2]
[328835314,1717858238510,-1936.75042707,0.000215,2]
[328835315,1717858238523,-241.408695,0.00026849,2]
[328835316,1717858238536,-241.408695,0.00027671,14]
[328835317,1717858238547,-502.936493,0.00029172,7]
[328835319,1717858238559,-1201.07377307,0.000294,2]
[328835320,1717858238571,-77823.27738318,0.00029498,2]
[328835321,1717858238582,-151.0,0.00029498,7]
[328835322,1717858238592,-151.0,0.00029498,7]
[328835323,1717858238603,-151.0,0.00029498,7]
[328835324,1717858238617,-151.301701,0.00029498,7]
[328835325,1717858238628,-151.0,0.00029498,7]
[328835326,1717858238640,-151.0,0.00029498,7]
[328835327,1717858238651,-151.0,0.00029498,7]
[328835328,1717858238663,-151.0,0.00029498,7]
[328835329,1717858238674,-151.0,0.00029498,7]
[328835330,1717858238686,-151.0,0.00029498,7]
[328835331,1717858238697,-151.0,0.00029498,7]
[328835332,1717858238708,-151.0,0.00029498,7]
[328835333,1717858238720,-502.936493,0.00029498,7]
[328835334,1717858238731,-477262.34843372,0.00029498,13]
[328835335,1717858239055,-930.8088417,0.00029496,2]
[328835336,1717858239068,-1253.63585053,0.00029497,2]
[328835337,1717858239084,-483.66151724,0.00029497,2]
[328835338,1717858239318,-1590.05032409,0.00029497,2]
[328835339,1717858239335,-2315.25871043,0.00029497,2]
[328835340,1717858239349,-801.80856444,0.00029497,2]
[328835347,1717858242671,-241.408695,0.00028493,14]
[328835348,1717858242682,-241.408695,0.00029315,14]
[328835349,1717858242693,-208.87102398,0.00029497,2]
[328835350,1717858242704,-1911.23740908,0.00029497,2]
[328835351,1717858242717,-369.66499999,0.00029497,2]
[328835353,1717858243693,-156.35946452,0.000149,2]
[328835354,1717858243705,-502.936493,0.00029172,7]
[328835355,1717858243715,-3612.19315109,0.00029497,2]
[328835356,1717858243726,-1002.05576687,0.00029497,2]
[328835357,1717858243736,-502.936493,0.00029498,7]
[328835359,1717858243749,-1554.68466558,0.00029498,13]
[328835360,1717858243765,-1243.9391314,0.00029498,13]
[328835361,1717858244222,-293.33957425,0.00029498,7]
[328835363,1717858244235,-209.59691875,0.00029498,7]
[328835365,1717858244246,-382.12258582,0.00029498,13]
[328835366,1717858244258,-1308.30798617,0.00029498,13]
[328835367,1717858244269,-8450.7127794,0.00029498,13]
[328835368,1717858244282,-519.38002652,0.00029498,13]
[328835369,1717858244294,-453.8567141,0.00029498,13]
[328835370,1717858244307,-727.00144282,0.00029498,13]
[328835371,1717858244318,-3818.6312516,0.00029498,13]
[328835372,1717858244330,-25492.12185192,0.00029498,13]
[328835373,1717858244342,-14924.06084579,0.00029498,13]
[328835374,1717858244355,-716.8094612,0.00029498,13]
[328835375,1717858244366,-5804.77917735,0.00029498,13]
[328835376,1717858244378,-2479.77387397,0.00029498,13]
[328835377,1717858244390,-289432.89838471,0.00029498,13]
[328835378,1717858244400,-323.0,0.00029498,5]
[328835379,1717858244410,-473757.05256394,0.00029499,2]
[328835380,1717858244420,-1000.0,0.00029499,2]
[328835381,1717858244431,-234.324953,0.00029499,7]
[328835382,1717858244441,-151.0,0.00029499,7]
[328835383,1717858244452,-153.22074,0.00029499,7]
[328835384,1717858244462,-153.22074,0.00029499,7]
[328835385,1717858244473,-151.0,0.00029499,7]
[328835386,1717858244483,-151.0,0.00029499,7]
[328835387,1717858244493,-151.0,0.00029499,7]
[328835388,1717858244503,-151.0,0.00029499,7]
[328835389,1717858244514,-151.0,0.00029499,7]
[328835390,1717858244524,-151.0,0.00029499,7]
[328835391,1717858244534,-151.0,0.00029499,7]
[328835392,1717858244545,-151.0,0.00029499,7]
[328835393,1717858244555,-151.0,0.00029499,7]
[328835394,1717858244567,-151.0,0.00029499,7]
[328835395,1717858244577,-151.0,0.00029499,7]
[328835396,1717858244587,-502.936493,0.00029499,7]
[328835397,1717858244596,-228.92207949,0.000295,3]
[328835398,1717858244606,-1689735.9,0.000295,5]
[328835399,1717858244616,-151.0,0.000295,7]
[328835400,1717858244626,-151.0,0.000295,7]
[328835401,1717858244637,-151.0,0.000295,7]
[328835402,1717858244647,-153.22074,0.000295,7]
[328835403,1717858244657,-153.22074,0.000295,7]
[328835404,1717858244667,-153.22074,0.000295,7]
[328835405,1717858244677,-153.22074,0.000295,7]
[328835406,1717858244687,-151.0,0.000295,7]
[328835407,1717858244697,-151.0,0.000295,7]
[328835408,1717858244707,-151.0,0.000295,7]
[328835409,1717858244716,-200.0,0.000295,10]
[328835410,1717858244727,-151.0,0.000295,7]
[328835411,1717858244737,-151.0,0.000295,7]
[328835412,1717858244749,-151.0,0.000295,7]
[328835413,1717858244760,-151.0,0.000295,7]
[328835415,1717858244770,-151.0,0.000295,7]
[328835417,1717858244781,-151.0,0.000295,7]
[328835419,1717858244791,-151.0,0.000295,7]
[328835422,1717858244801,-151.0,0.000295,7]
[328835425,1717858244811,-151.0,0.000295,7]
[328835428,1717858244821,-151.0,0.000295,7]
[328835430,1717858244834,-150.0,0.000295,6]
[328835432,1717858244845,-151.0,0.000295,7]
[328835434,1717858244855,-151.0,0.000295,7]
[328835436,1717858244864,-502.936493,0.000295,7]
[328835438,1717858244874,-251.87828571,0.000295,2]
[328835440,1717858244884,-1420.0,0.00029507,4]
[328835441,1717858244893,-44022.0,0.00029507,4]
[328835444,1717858244904,-7947.4801374,0.00029535,2]
[328835446,1717858244915,-953.09528274,0.0002955,2]
[328835448,1717858244925,-1201.07377305,0.0002955,2]
[328835450,1717858244935,-375.0,0.00029568,9]
[328835452,1717858244945,-151.00335646,0.00029572,2]
[328835454,1717858244956,-7947.4801374,0.00029581,2]
[328835456,1717858244967,-500.0,0.00029589,4]
[328835457,1717858244978,-500.0,0.00029589,4]
[328835458,1717858244987,-500.0,0.00029589,4]
[328835459,1717858244997,-500.0,0.00029589,4]
[328835460,1717858245006,-500.0,0.00029589,4]
[328835461,1717858245016,-500.0,0.00029589,4]
[328835462,1717858245025,-500.0,0.00029589,4]
[328835463,1717858245036,-500.0,0.00029589,4]
[328835464,1717858245046,-500.0,0.00029589,4]
[328835465,1717858245056,-500.0,0.00029589,4]
[328835466,1717858245065,-500.0,0.00029589,4]
[328835467,1717858245075,-500.0,0.00029589,4]
[328835468,1717858245084,-534.77558576,0.00029589,4]
[328835469,1717858245094,-500.0,0.00029589,4]
[328835470,1717858245104,-500.0,0.00029589,4]
[328835471,1717858245113,-500.0,0.00029589,4]
[328835472,1717858245123,-500.0,0.00029589,4]
[328835473,1717858245133,-500.0,0.00029589,4]
[328835475,1717858245143,-500.0,0.00029589,4]
[328835477,1717858245154,-500.0,0.00029589,4]
[328835479,1717858245163,-500.0,0.00029589,4]
[328835481,1717858245173,-500.0,0.00029589,4]
[328835483,1717858245183,-500.0,0.00029589,4]
[328835485,1717858245193,-500.0,0.00029589,4]
[328835487,1717858245203,-500.0,0.00029589,4]
[328835489,1717858245212,-500.0,0.00029589,4]
[328835491,1717858245222,-500.0,0.00029589,4]
[328835493,1717858245234,-500.0,0.00029589,4]
[328835495,1717858245244,-500.0,0.00029589,4]
[328835497,1717858245254,-500.0,0.00029589,4]
[328835499,1717858245264,-500.0,0.00029589,4]
[328835501,1717858245274,-151.63,0.0002959,2]
[328835503,1717858245284,-500.0,0.00029598,4]
[328835505,1717858245294,-151.0,0.00029599,7]
[328835507,1717858245304,-153.22074,0.00029599,7]
[328835509,1717858245314,-153.22074,0.00029599,7]
[328835511,1717858245323,-221.527514,0.00029599,7]
[328835513,1717858245334,-151.0,0.00029599,7]
[328835515,1717858245344,-256.148272,0.00029599,7]
[328835517,1717858245354,-572.72109905,0.00029599,4]
[328835519,1717858245364,-250000.0,0.000296,2]
[328835521,1717858245374,-282.345995,0.000296,7]
[328835523,1717858245384,-153.22074,0.000296,7]
[328835525,1717858245393,-153.22074,0.000296,7]
[328835527,1717858245403,-200.0,0.000296,10]
[328835529,1717858245414,-151.0,0.000296,7]
[328835532,1717858245424,-151.0,0.000296,7]
[328835533,1717858245434,-151.0,0.000296,7]
[328835535,1717858245444,-151.0,0.000296,7]
[328835537,1717858245454,-151.0,0.000296,7]
[328835539,1717858245463,-151.0,0.000296,7]
[328835541,1717858245473,-189.561717,0.000296,7]
[328835543,1717858245483,-502.936493,0.000296,7]
[328835545,1717858245493,-1849.68164114,0.00029612,2]
[328835547,1717858245503,-151.00335646,0.0002962,2]
[328835549,1717858245513,-7947.4801374,0.00029626,2]
[328835551,1717858245523,-303.31818525,0.00029649,2]
[328835553,1717858245533,-151.00335646,0.00029653,2]
[328835555,1717858245542,-7947.4801374,0.00029672,2]